[Event "ChessKid Cup Div-II 2023"]
[Site "Online"]
[Date "2023.05.22"]
[Round "1.2"]
[White "Mamedyarov, Shakhriyar"]
[Black "Fedoseev, Vladimir"]
[Result "0-1"]
[ECO "D14"]
[WhiteElo "2738"]
[BlackElo "2680"]
[Annotator "TA"]
[PlyCount "168"]
[EventDate "2023.05.21"]
[EventType "k.o."]
[EventCountry "NET"]
[SourceTitle "playchess.com"]
[Source "ChessBase"]
[SourceQuality "1"]
[TimeControl "900+3"]

{[%evp 21,168,0,7,0,0,0,24,0,0,0,0,0,4,0,0,0,4,0,0,-29,-23,-23,-22,-50,-50,-47,-45,-46,-44,-45,-16,-19,-18,-20,-19,-28,-27,-21,-19,-12,-11,-10,-10,-12,-6,-10,-10,-10,-10,-13,-10,-10,-4,-70,-12,-41,-27,-28,-2,-110,-110,-110,-110,-110,-110,-110,-110,-110,-110,-110,-110,-110,-87,-92,-77,-110,-110,-110,-110,-110,-110,-110,-110,-110,-110,-132,-124,-124,-124,-124,-115,-140,-140,-140,-130,-115,-116,-116,-108,-92,-92,-109,-116,-195,-92,-195,-140,-188,-188,-188,-188,-181,-181,-278,-278,-278,-278,-509,-278,-278,-278,-278,-278,-277,-253,-441,0,-116,-116,-116,-116,-116,-116,-116,-116,-116,-116,-116,-116,-116,0,-116,-116,-116,-116,-116,-116,-29980,-29981]} 1. d4 {[%emt 0:00:04]} d5 {[%emt 0:00:06]} 2. c4 {[%emt 0:00:04]} c6 {[%emt 0:00:02]} 3. cxd5 {[%emt 0:00:16]} cxd5 {[%emt 0:00:01]} 4. Nc3 {[%emt 0:00:00]} Nf6 {[%emt 0:00:07]} 5. Bf4 {[%emt 0:00:02]} Nc6 {[%emt 0:00:05]} 6. e3 {[%emt 0:00:01]} Bf5 {[%emt 0:00:01]} 7. Nf3 {[%emt 0:00:21]} e6 {[%emt 0:00:05]} 8. Bb5 {[%emt 0:00:20]} Nd7 {[%emt 0:00:09]} 9. O-O {[%emt 0:00:40]} Rc8 {[%emt 0:00:11]} 10. Rc1 {[%emt 0:01:04]} Be7 {[%emt 0:00:05]} 11. Qb3 {[%emt 0:01:05]} O-O {[%emt 0:00:10]} 12. Bxc6 {[%emt 0:00:20] D14: Slav Defence: Exchange variation with ...Bf5.} bxc6 {[%emt 0:00:19]} 13. Qb7 {[%emt 0:00:10]} a5 {[%emt 0:00:14]} 14. Ne5 {[%emt 0:01:31] White has an edge.} Nxe5 {[%emt 0:01:21]} 15. Bxe5 {[%emt 0:00:00]} f6 {[%emt 0:00:38]} 16. Bg3 {[%emt 0:00:04]} Bb4 {[%emt 0:01:05] [#]} 17. Qa6 $146 {[%emt 0:00:49] Against Bd3} ({Predecessor:} 17. Rfd1 c5 18. dxc5 Rxc5 19. e4 Bxe4 20. Nxe4 dxe4 21. Qxe4 Qd2 22. Bf4 Rxc1 23. Rxc1 {½-½ Balogh,P (2313)-Prielozny,S (2172) SVK-chT 0001 2000 (4)}) 17... c5 {[%emt 0:00:37]} 18. dxc5 {[%emt 0:00:39]} Rxc5 {[%emt 0:00:44]} 19. a3 {[%emt 0:01:13]} Bxc3 {[%emt 0:00:06]} 20. Rxc3 {[%emt 0:00:22]} (20. Bd6 $5 {[%cal Rd6c5]} Bd3 21. Qxd3 {[%mdl 64] Pin} Qxd6 22. Rxc3 $11) 20... Rxc3 {[%emt 0:00:03]} 21. bxc3 {[%emt 0:00:00]} Qa8 {[%emt 0:00:24]} 22. Qxa8 {[%emt 0:00:30]} Rxa8 $11 {[%emt 0:00:03][%mdl 4096] Endgame KRB-KRB} 23. Bc7 {[%emt 0:00:05]} Ra7 {[%emt 0:00:25]} 24. Bb6 {[%emt 0:00:05]} Ra6 {[%emt 0:00:01]} 25. Bc7 {[%emt 0:00:02]} a4 {[%emt 0:00:33]} 26. Rd1 {[%emt 0:00:10]} Ra7 {[%emt 0:01:18]} 27. Bd6 {[%emt 0:00:10]} Rd7 {[%emt 0:00:03]} 28. Bc5 {[%emt 0:00:18]} Rc7 {[%emt 0:00:04]} 29. Bb4 {[%emt 0:00:03]} Kf7 {[%emt 0:00:13]} 30. Rd2 {[%emt 0:00:04]} g5 {[%emt 0:00:11][%cal Bg7g5,Bg5h4,Bh4h3][%mdl 32]} 31. f3 {[%emt 0:00:07]} h5 {[%emt 0:00:03]} 32. Kf2 {[%emt 0:00:01]} Bb1 {[%emt 0:00:21]} 33. Ba5 {[%emt 0:00:11]} Rb7 {[%emt 0:00:11]} 34. Bb4 {[%emt 0:00:01]} Kg6 {[%emt 0:00:24]} 35. h4 {[%emt 0:00:10]} gxh4 {[%emt 0:00:45]} 36. Rd4 {[%emt 0:00:02]} Kg5 {[%emt 0:00:03]} 37. Rd2 {[%emt 0:01:07]} ({White should play} 37. c4 $11) 37... Bf5 {[%emt 0:00:10]} (37... Rc7 $15) 38. Rd4 {[%emt 0:00:13]} h3 {[%emt 0:00:49]} 39. g3 {[%emt 0:00:01]} Rb5 {[%emt 0:00:48]} 40. Kg1 {[%emt 0:00:02]} (40. c4 $1 $11 dxc4 41. e4) 40... e5 $17 {[%emt 0:00:04]} 41. Rd2 {[%emt 0:00:08]} e4 {[%emt 0:00:14]} 42. Rf2 {[%emt 0:00:13]} Rb7 {[%emt 0:00:45]} 43. Kh2 {[%emt 0:00:12]} Rd7 {[%emt 0:00:15]} 44. Rf1 {[%emt 0:00:16]} Rc7 {[%emt 0:00:14]} 45. Rf2 {[%emt 0:00:03]} Rc6 {[%emt 0:00:02]} 46. Rf1 {[%emt 0:00:08]} Re6 {[%emt 0:00:25]} 47. Bc5 {[%emt 0:00:05]} Kg6 {[%emt 0:00:06]} 48. Bd4 {[%emt 0:01:20]} exf3 {[%emt 0:00:03]} 49. Rxf3 {[%emt 0:00:00]} Re8 {[%emt 0:00:18] ...Rb8 is the strong threat.} 50. Bc5 {[%emt 0:00:10]} Rc8 {[%emt 0:00:06]} 51. Bb4 {[%emt 0:00:01]} (51. Bd4 $2 Rb8 52. Rf2 Rb3 $19) 51... Kg5 {[%emt 0:00:18]} 52. Rf4 {[%emt 0:00:01]} Rc6 {[%emt 0:00:19]} 53. Rd4 {[%emt 0:00:09]} Re6 {[%emt 0:00:05]} 54. c4 {[%emt 0:00:23]} dxc4 {[%emt 0:00:07]} (54... Rxe3 $2 55. Bd2 (55. cxd5 Re2+ 56. Kh1 Be4+ 57. Rxe4 Rxe4 $19) 55... dxc4 56. Bxe3+ Kg6 57. Rxc4 $18) 55. Rxc4 {[%emt 0:00:01]} Kg6 {[%emt 0:00:11]} (55... Rxe3 $2 56. Bd2 $18) 56. Bc5 {[%emt 0:00:06]} Rc6 {[%emt 0:00:09]} 57. Rc3 {[%emt 0:00:02]} Bg4 {[%emt 0:00:07] Black is more active.} 58. Bd4 {[%emt 0:00:06]} Ra6 {[%emt 0:00:08]} 59. Rc4 {[%emt 0:00:04]} Kf5 {[%emt 0:00:07]} 60. Bc3 {[%emt 0:00:26]} Ke6 {[%emt 0:00:03]} 61. Re4+ {[%emt 0:00:05]} Kf7 {[%emt 0:00:05] White must now prevent ...Rc6.} 62. Rc4 {[%emt 0:00:02] Prevents Rc6} (62. Bd2 $17 {was worth a try.}) 62... f5 {[%emt 0:00:05]} (62... Rd6 $1 $19 {is more deadly.} 63. Bd4 (63. Rxa4 $2 Rd3 $19) 63... Kg6) 63. Bd4 {[%emt 0:00:05]} (63. e4 $17) 63... Ke6 {[%emt 0:00:03]} (63... Rd6 $19 64. Rc7+ (64. Rxa4 $2 Rc6 $19) 64... Ke6) 64. Rb4 {[%emt 0:00:02]} (64. Bc3 $17) 64... Kd5 {[%emt 0:00:02]} 65. Rb5+ {[%emt 0:00:49]} Kc4 {[%emt 0:00:08]} 66. Rb4+ {[%emt 0:00:04]} Kd3 {[%emt 0:00:02]} 67. Bc5 {[%emt 0:00:37]} (67. Bb6 $142) 67... Rc6 $19 {[%emt 0:00:06]} 68. Rd4+ {[%emt 0:00:03] [#]} Ke2 $1 {[%emt 0:00:18]} ({Stronger than} 68... Kxe3 69. Rxg4+ Rxc5 70. Rxa4 $11) 69. Rc4 $2 {[%emt 0:00:01]} (69. Rd5 {was the only defense.}) 69... Rc8 {[%emt 0:00:09]} 70. Rc3 {[%emt 0:00:01]} Kd2 {[%emt 0:00:02]} 71. Rc4 {[%emt 0:00:01] Strongly threatening Bb4+.} Kd3 {[%emt 0:00:04]} 72. Rd4+ {[%emt 0:00:01] [#]} Ke2 $1 {[%emt 0:00:02]} ({Inferior is} 72... Kxe3 73. Rxg4+ Rxc5 74. Rxa4 $11) 73. Rc4 $2 {[%emt 0:00:01]} (73. Rd5 {was forced.}) 73... Kd3 $2 {[%emt 0:00:08]} (73... Bf3 $19 {And now ...Bd5 would win.} 74. Rc2+ Kd3) 74. Rd4+ $17 {[%emt 0:00:02]} Kc3 {[%emt 0:00:01]} ({Reject} 74... Kxe3 $6 75. Rxg4+ Rxc5 76. Rxa4 $11) 75. Bb4+ {[%emt 0:00:16]} Kb2 {[%emt 0:00:01]} 76. Rd2+ {[%emt 0:00:02]} Kc1 {[%emt 0:00:01]} 77. Rf2 {[%emt 0:00:02]} Rc4 {[%emt 0:00:04]} 78. Kg1 {[%emt 0:00:03]} Kb1 {[%emt 0:00:03]} 79. Kh2 {[%emt 0:00:02]} Re4 {[%emt 0:00:13]} 80. Bc5 {[%emt 0:00:04]} Rc4 {[%emt 0:00:02]} 81. Bb4 $1 {[%emt 0:00:00]} Rc6 {[%emt 0:00:06] Against Bd6} 82. Rd2 {[%emt 0:00:05]} Re6 {[%emt 0:00:03]} 83. Bc5 {[%emt 0:00:02]} Re5 {[%emt 0:00:02]} 84. Rb2+ $2 {[%emt 0:00:08][%mdl 8192]} Kxb2 {[%emt 0:00:03] Weighted Error Value: White=0.09 (flawless) /Black=0.06 (flawless)} 0-1

[Event "ChessKid Cup Div-II 2023"]
[Site "Online"]
[Date "2023.05.22"]
[Round "1.2"]
[White "Le, Quang Liem"]
[Black "Bharath Subramaniyam H"]
[Result "1-0"]
[ECO "D12"]
[WhiteElo "2728"]
[BlackElo "2517"]
[Annotator "TA"]
[PlyCount "71"]
[EventDate "2023.05.21"]
[EventType "k.o."]
[EventCountry "NET"]
[SourceTitle "playchess.com"]
[Source "ChessBase"]
[SourceQuality "1"]
[TimeControl "900+3"]

{[%evp 15,71,25,26,14,23,12,16,12,19,12,15,0,15,0,0,-7,40,11,56,50,66,45,54,54,54,55,55,47,52,51,52,45,95,86,79,92,98,99,111,111,212,202,202,131,206,195,1828,1798,1704,1517,29983,29984,29994,29995,29995,29994,29996,29997]} 1. Nf3 {[%emt 0:00:04]} d5 {[%emt 0:00:06]} 2. e3 {[%emt 0:00:02]} Nf6 {[%emt 0:00:05]} 3. c4 {[%emt 0:00:02]} c6 {[%emt 0:00:02]} 4. d4 {[%emt 0:00:04]} Bf5 {[%emt 0:00:02]} 5. Nc3 {[%emt 0:00:01]} e6 {[%emt 0:00:02]} 6. Nh4 {[%emt 0:00:01]} Be4 {[%emt 0:00:00]} 7. f3 {[%emt 0:00:02]} Bg6 {[%emt 0:00:01]} 8. Qb3 {[%emt 0:00:03]} Qc7 {[%emt 0:00:01]} 9. cxd5 {[%emt 0:00:02] D12: Slav Defence: 3 Nf3 Nf6 4 e3 Bf5.} cxd5 {[%emt 0:00:06]} 10. Bd2 {[%emt 0:00:03]} Nc6 {[%emt 0:00:01]} 11. O-O-O {[%emt 0:00:05] The position is equal.} a6 {[%emt 0:00:02] White must now prevent ...Na5.} 12. Nxg6 {[%emt 0:00:03]} hxg6 {[%emt 0:00:00]} 13. Kb1 {[%emt 0:00:02]} Rb8 {[%emt 0:00:01] [#]} (13... Rxh2 $2 14. Rxh2 O-O-O 15. Rh1 $18) 14. Bd3 $5 $146 {[%emt 0:01:36][%mdl 8] An interesting novelty.} ({Predecessor:} 14. h3 b5 15. Nxb5 axb5 16. Bxb5 Rxb5 17. Qxb5 Kd7 18. Rc1 Bd6 19. Rc2 Rb8 20. Qa6 {0-1 Anuj,S (2094)-Arjun,K (2370) Montcada op-A 26th 2018 (2)}) 14... b5 {[%emt 0:01:23]} 15. Ne2 {[%emt 0:00:10]} Be7 {[%emt 0:00:27]} (15... Nd7 $11 {might be stronger.}) 16. Rc1 $14 {[%emt 0:00:34]} O-O {[%emt 0:00:37]} 17. h4 {[%emt 0:00:09][%cal Oh4h5]} Rbc8 {[%emt 0:00:22][%cal Oc6a5]} 18. Be1 {[%emt 0:01:05] White is more active.} Qb6 {[%emt 0:00:36]} 19. g4 {[%emt 0:00:04][%cal Bg2g4,Bg4g5][%mdl 32]} Na5 {[%emt 0:01:07]} 20. Bxa5 {[%emt 0:00:03]} Qxa5 {[%emt 0:00:00]} 21. g5 {[%emt 0:00:19]} Nh5 {[%emt 0:00:45]} 22. Rc2 {[%emt 0:00:05] Inhibits Qd2.} Rc4 {[%emt 0:00:56][%cal Of8c8]} 23. a3 {[%emt 0:00:20][%cal Ba2a3,Ba3a4][%mdl 32]} ({Wrong is} 23. Bxc4 $2 dxc4 $19) 23... Rc7 {[%emt 0:02:10]} (23... Ra4 $14) 24. Rxc7 $16 {[%emt 0:00:09]} Qxc7 {[%emt 0:00:02]} 25. f4 {[%emt 0:00:04]} Qb6 {[%emt 0:00:40]} 26. Rc1 {[%emt 0:00:04][%cal Bh1c1,Bc1c3,Bc3c7][%mdl 32]} Rb8 {[%emt 0:00:01]} 27. Qc2 {[%emt 0:01:28][%cal Od3g6] Bxg6! would be deadly.} b4 {[%emt 0:00:15] [#]} (27... Qd8 $16 {keeps fighting.}) 28. a4 $1 $18 {[%emt 0:00:08][%cal Od3g6] Threatens to win with Bxg6!} b3 {[%emt 0:00:15]} 29. Qc6 {[%emt 0:00:01] Qxb6 is the strong threat.} Qb4 {[%emt 0:01:11]} (29... Qd8 $16 {was worth a try.}) 30. Rc3 {[%emt 0:00:08]} Rb6 $2 {[%emt 0:00:35]} (30... a5 31. Nc1 Qd6) 31. Qe8+ {[%emt 0:00:04]} Bf8 {[%emt 0:00:02]} 32. Rc7 {[%emt 0:00:12]} Qe1+ {[%emt 0:03:53]} 33. Nc1 {[%emt 0:00:03] White mates.} Qxe3 {[%emt 0:00:19]} 34. Qxf7+ {[%emt 0:00:03]} Kh8 {[%emt 0:00:01]} 35. Qxf8+ {[%emt 0:00:07]} Kh7 {[%emt 0:00:02] [#]} 36. Bxg6+ $1 {[%emt 0:00:05] Artfully played by Le.   Weighted Error Value: White=0.07 (flawless) /Black=0.47} 1-0

[Event "ChessKid Cup Div-II 2023"]
[Site "Online"]
[Date "2023.05.22"]
[Round "1.2"]
[White "Alekseenko, Kirill"]
[Black "Meier, Georg"]
[Result "1-0"]
[ECO "A45"]
[WhiteElo "2686"]
[BlackElo "2614"]
[Annotator "TA"]
[PlyCount "55"]
[EventDate "2023.05.21"]
[EventType "k.o."]
[EventCountry "NET"]
[SourceTitle "playchess.com"]
[Source "ChessBase"]
[SourceQuality "1"]
[TimeControl "900+3"]

{[%evp 9,55,0,46,39,31,47,54,71,64,33,28,16,31,-13,59,0,59,-74,26,-36,-52,-66,-62,-89,311,328,300,314,307,316,583,596,583,578,1002,1002,904,358,562,572,559,544,672,606,595,489,533,527]} 1. d4 {[%emt 0:00:04]} e6 {[%emt 0:00:06]} 2. Bf4 {[%emt 0:00:02]} (2. Nc3 d5 3. Bf4 Bd6 4. e3 Nf6 5. Nf3 Bxf4 6. exf4 O-O 7. Bd3 b6 8. Ne5 Ba6 9. Bxa6 Nxa6 10. Qe2 Qc8 11. O-O c5 {0-1 Alekseenko,K (2686)-Meier,G (2614) ChessKid Cup Play In blitz 2023 (9)}) 2... Nf6 {[%emt 0:00:02]} 3. e3 {[%emt 0:00:05]} Be7 {[%emt 0:00:02]} 4. Nc3 {[%emt 0:00:01]} O-O {[%emt 0:00:03]} 5. g4 {[%emt 0:00:05][%cal Bg2g4,Bg4g5][%mdl 32] [#]} d6 $146 {[%emt 0:00:13]} (5... Bb4 $11 {feels stronger.}) ({Predecessor:} 5... Bb4 6. Bg2 d6 7. Bg3 e5 8. g5 Nfd7 9. h4 exd4 10. Qxd4 Nc6 11. Qd2 Nde5 {0-1 Andersen,G (2238)-Cordova,E (2549) Philadelphia int op 15th 2022 (1)}) 6. g5 $14 {[%emt 0:00:39] A45: Trompowsky Attack.} Nfd7 {[%emt 0:00:01]} 7. h4 {[%emt 0:00:11]} e5 {[%emt 0:00:01]} 8. Bg3 {[%emt 0:00:22] White is slightly better.} exd4 {[%emt 0:00:02]} 9. exd4 {[%emt 0:00:30]} Re8 {[%emt 0:00:02]} 10. Be2 {[%emt 0:00:19]} Nb6 {[%emt 0:00:07]} 11. Qd2 {[%emt 0:00:27]} Nc6 {[%emt 0:00:07]} (11... Nc4 $11 12. Qd3 d5) 12. O-O-O {[%emt 0:00:15]} (12. d5 $14 Ne5 13. O-O-O) 12... Bf5 {[%emt 0:00:01]} (12... d5 $1 $11) 13. Bd3 {[%emt 0:00:29]} (13. Qf4 $14 {keeps the upper hand.} Qd7 14. d5) 13... Qd7 {[%emt 0:00:02]} ({Black should try} 13... Nxd4 $17 14. Nge2 Nf3) 14. Qf4 {[%emt 0:00:53]} ({Better is} 14. Bxf5 $11 Qxf5 15. a3) 14... Bxd3 $15 {[%emt 0:00:19]} 15. Rxd3 {[%emt 0:00:00]} Nb4 $1 {[%emt 0:00:12]} 16. Rf3 {[%emt 0:01:04] [#]} Bxg5 $4 {[%emt 0:01:33][%mdl 8192] This costs Black the game.} 17. hxg5 $18 {[%emt 0:01:12][%cal Bh4g5,Bg5h6,Bh6h7][%mdl 32]} (17. Qxg5 Re1+ 18. Kd2 Rae8 $14) 17... Re1+ {[%emt 0:00:01] [#]} 18. Kd2 $1 {[%emt 0:00:42]} (18. Nd1 $2 Rae8 19. b3 Nxa2+ 20. Kd2 (20. Kb1 $2 Rxd1+ 21. Kxa2 Ree1 $19) 20... R1e4 $19) 18... Rae8 {[%emt 0:00:51][%cal Rb6c4] [#]} 19. b3 {[%emt 0:00:05] Repels Nc4+} ({Not} 19. Re3 R1xe3 20. fxe3 Nc4+ 21. Kc1 Nxa2+ 22. Nxa2 Qa4 $11) 19... g6 $2 {[%emt 0:00:05]} (19... Qe6) 20. Qh4 {[%emt 0:00:46]} h5 {[%emt 0:00:01]} 21. gxh6 {[%emt 0:00:07] White threatens h7+ and mate.} N6d5 {[%emt 0:00:10]} 22. h7+ {[%emt 0:01:01]} Kh8 {[%emt 0:00:02]} 23. Nge2 $2 {[%emt 0:00:11]} (23. a3 g5 24. Qxg5 (24. Qh5 Nxc3 25. Rxc3 Nd5 $18)) 23... Rxh1 {[%emt 0:00:33]} (23... g5 {might work better.} 24. Qxg5 Rxh1) 24. Qxh1 {[%emt 0:00:02] aiming for a3. White is clearly winning.} Qc6 {[%emt 0:00:09]} 25. Qd1 {[%emt 0:02:34]} (25. Rxf7 $2 {perishes.} Rxe2+ 26. Kxe2 Nxc3+ 27. Kd2 Qxh1 $19) 25... Qd7 {[%emt 0:00:34]} 26. Nxd5 {[%emt 0:00:14]} Nxd5 {[%emt 0:00:00]} 27. Nc3 {[%emt 0:00:09]} Nxc3 {[%emt 0:00:16]} 28. Kxc3 {[%emt 0:00:06] An exciting game.   Weighted Error Value: White=0.75/Black=0.77} 1-0

[Event "ChessKid Cup Div-II 2023"]
[Site "Online"]
[Date "2023.05.22"]
[Round "1.2"]
[White "Oparin, Grigoriy"]
[Black "Le, Tuan Minh"]
[Result "1-0"]
[ECO "A13"]
[WhiteElo "2667"]
[BlackElo "2542"]
[Annotator "TA"]
[PlyCount "75"]
[EventDate "2023.05.21"]
[EventType "k.o."]
[EventCountry "NET"]
[SourceTitle "playchess.com"]
[Source "ChessBase"]
[SourceQuality "1"]
[TimeControl "900+3"]

{[%evp 14,75,3,20,27,0,0,0,0,0,7,0,0,-8,-14,-70,-64,-63,-73,-79,-56,-81,-39,-37,-24,-39,-22,-26,-20,-26,7,0,0,-78,-85,-73,0,0,-6,-90,-87,-175,-203,-171,-3,-9,68,-223,72,18,466,480,472,457,556,434,494,519,919,881,989,976,923,898]} 1. c4 {[%emt 0:00:06]} e6 {[%emt 0:00:11]} 2. Nf3 {[%emt 0:00:02]} d5 {[%emt 0:00:02]} 3. g3 {[%emt 0:00:00]} d4 {[%emt 0:00:08]} 4. Bg2 {[%emt 0:00:04]} c5 {[%emt 0:00:01]} 5. e3 {[%emt 0:00:04]} Nc6 {[%emt 0:00:02]} 6. exd4 {[%emt 0:00:02]} cxd4 {[%emt 0:00:00]} 7. O-O {[%emt 0:00:01]} Nf6 {[%emt 0:00:18]} 8. d3 {[%emt 0:00:01]} h6 {[%emt 0:00:05] A13: English Opening: 1...e6.} 9. Na3 {[%emt 0:00:03]} Bc5 {[%emt 0:01:53]} 10. Re1 {[%emt 0:00:03]} O-O {[%emt 0:00:05] The position is equal.} 11. Nc2 {[%emt 0:00:06]} a5 {[%emt 0:00:05]} 12. Bf4 {[%emt 0:00:12]} Nd7 {[%emt 0:00:37] [#]} 13. Rb1 $146 {[%emt 0:00:09]} ({Predecessor:} 13. b3 Re8 14. a3 e5 15. Bd2 Be7 16. b4 Bf6 17. Qe2 e4 18. b5 Ne7 19. dxe4 {0-1 Beydullayeva,G (2264)-Kilgus,G (2452) Belgrade Serbia op 2021 (2)}) 13... Re8 {[%emt 0:00:06]} 14. b3 {[%emt 0:00:05]} (14. g4 $11) 14... e5 $15 {[%emt 0:00:13]} 15. Bd2 {[%emt 0:00:02]} Nf6 {[%emt 0:00:04][%cal Bd7f6,Bf6e4,Be4d2][%mdl 32]} 16. a3 {[%emt 0:00:37] [#]} e4 $1 {[%emt 0:00:29]} 17. dxe4 {[%emt 0:00:01]} d3 {[%emt 0:00:04]} (17... Rxe4 18. b4 Rxe1+ 19. Bxe1 axb4 20. axb4 $14) 18. Ne3 {[%emt 0:00:01]} Bxa3 {[%emt 0:02:02]} (18... Nxe4 $5 {[%cal Rd8d6]} 19. b4 axb4 20. axb4 Bxe3 21. Rxe3 Bf5 $15) 19. e5 {[%emt 0:00:01]} Ne4 {[%emt 0:01:07]} 20. Nd5 {[%emt 0:00:15]} Nxd2 {[%emt 0:00:12]} 21. Qxd2 {[%emt 0:00:01]} Bf5 {[%emt 0:00:00]} 22. Nh4 {[%emt 0:00:28] Excellent horsemanship.} Bh7 {[%emt 0:00:23]} 23. f4 {[%emt 0:00:01]} (23. Be4 $11 {keeps the balance.}) 23... Bc5+ $17 {[%emt 0:00:40]} 24. Kh1 {[%emt 0:00:02]} Nb4 {[%emt 0:00:00]} (24... b5 $17) 25. f5 $1 $11 {[%emt 0:01:17]} Qg5 {[%emt 0:00:20]} 26. Qd1 {[%emt 0:02:33]} (26. Nf4 $11 {remains equal.}) 26... Rad8 $17 {[%emt 0:00:40]} (26... Bxf5 27. Nxf5 Qxf5 28. Nc7 $11) 27. Qf3 {[%emt 0:01:09]} (27. Be4 $17) 27... d2 {[%emt 0:01:23]} 28. Re2 {[%emt 0:00:08] [#]} Nc2 $2 {[%emt 0:00:56]} (28... Nxd5 $1 $19 29. cxd5 Bb4) 29. Qf4 $1 $11 {[%emt 0:00:29]} ({Don't go for} 29. e6 $2 Nd4 30. Qf2 (30. exf7+ $2 Kxf7 31. Rxe8 Nxf3 $19) 30... Nxe2 31. Qxe2 fxe6 $19) 29... Bb4 {[%emt 0:01:55]} (29... Ne3 $11 30. Rxd2 Nxd5 31. Bxd5 (31. Rxd5 Qxf4 32. gxf4 Bf2 $17) 31... Be3 32. Qxg5 Bxg5) 30. Rf2 $2 {[%emt 0:00:28][%mdl 8192]} (30. Qe4 $14 {is the one way to stay ahead.} Ne1 31. Rd1) 30... Ne1 $2 {[%emt 0:00:18]} (30... Qxf4 $19 31. gxf4 Rxd5 32. Bxd5 Ne3) 31. Be4 $16 {[%emt 0:00:14] And now Rd1 would win. Really sharp!} Qh5 {[%emt 0:00:43][%mdl 8192] Prevents Rd1.} (31... Qxf4 $11 {and Black has nothing to worry.} 32. gxf4 Kf8) 32. Rxd2 $1 $18 {[%emt 0:00:54] White is clearly winning.} Bxd2 {[%emt 0:01:19]} 33. Qxd2 {[%emt 0:00:00]} Qg5 {[%emt 0:00:15]} 34. Qf4 {[%emt 0:00:04]} Qxf4 {[%emt 0:00:02]} 35. gxf4 {[%emt 0:00:00]} g5 {[%emt 0:00:06]} (35... b5 $142 36. Rxe1 bxc4 37. bxc4 Rc8) 36. fxg6 {[%emt 0:00:02]} Bxg6 {[%emt 0:00:01]} 37. Nxg6 {[%emt 0:00:03]} fxg6 {[%emt 0:00:01]} 38. Nf6+ {[%emt 0:00:04][%mdl 64] Discovered Attack. Artfully played by Oparin.   Weighted Error Value: White=0.41/Black=0.55} 1-0